bitfinex/quotes_BTCUSD_20251226
["timestamp","ask_amount","ask_price","bid_price","bid_amount"]
[1766771271520,0.000549,87472.0,87462.0,0.01143353]
[1766771271697,0.00055,87471.0,87461.0,0.05716833]
[1766771271893,0.01148,87475.0,87463.0,0.0114334]
[1766771272071,0.04608164,87474.0,87465.0,0.01143314]
[1766771272482,0.04608164,87474.0,87467.0,0.01143288]
[1766771272878,0.04608164,87474.0,87468.0,0.01143275]
[1766771273129,0.04608164,87474.0,87469.0,0.01143262]
[1766771273269,0.04608164,87474.0,87465.0,0.01143314]
[1766771273270,0.000549,87469.0,87465.0,0.01143314]
[1766771273473,0.12061164,87474.0,87466.0,0.01143301]
[1766771273725,0.01148,87473.0,87467.0,0.01143288]
[1766771273882,0.01148,87473.0,87468.0,0.01143275]
[1766771274094,0.01148,87473.0,87471.0,0.0571612]
[1766771274411,0.0002,87476.0,87473.0,0.01143209]
[1766771274613,0.0002,87476.0,87473.0,0.06859222]
[1766771274959,0.0002,87476.0,87474.0,0.05715944]
[1766771275177,0.07453,87491.0,87478.0,0.01143144]
[1766771275372,0.07453,87499.0,87489.0,0.0113229]
[1766771275579,0.01148,87495.0,87493.0,0.01142948]
[1766771275988,0.01168,87496.0,87493.0,0.06857632]
[1766771276161,0.0002,87496.0,87493.0,0.01142948]
[1766771276343,0.01168,87496.0,87490.0,0.01142987]
[1766771276689,0.000549,87493.0,87491.0,0.01142974]
[1766771276897,0.000549,87493.0,87491.0,0.06857806]
[1766771277124,0.0002,87496.0,87493.0,0.01142948]
[1766771277326,0.01168,87496.0,87493.0,0.01142948]
[1766771277882,0.0002,87496.0,87493.0,0.01142948]
[1766771278106,0.01168,87496.0,87493.0,0.01142948]
[1766771279034,0.0002,87496.0,87493.0,0.01142948]
[1766771279169,0.01168,87496.0,87493.0,0.01142948]
[1766771280283,0.07453,87506.0,87499.0,0.0114287]
[1766771280502,0.01148,87505.0,87498.0,0.01142883]
[1766771280675,0.01148,87505.0,87496.0,0.01142909]
[1766771280877,0.01148,87505.0,87497.0,0.01142896]
[1766771281278,0.01148,87505.0,87498.0,0.01142883]
[1766771281478,0.6587126,87520.0,87506.0,0.01142778]
[1766771281479,0.07453,87520.0,87506.0,0.01142778]
[1766771281686,0.07453,87520.0,87504.0,0.01142804]
[1766771281687,0.04576,87519.0,87505.0,0.01142791]
[1766771281923,0.05724,87519.0,87505.0,0.01142791]
[1766771282083,0.05724,87519.0,87502.0,0.01142831]
[1766771282084,0.05724,87519.0,87506.0,0.01142778]
[1766771282284,0.05724,87519.0,87503.0,0.01142817]
[1766771282650,0.05724,87519.0,87480.0,0.69935061]
[1766771282651,0.00055,87503.0,87498.0,0.06857257]
[1766771282859,0.14500271,87519.0,87495.0,0.01142922]
[1766771282860,0.01148,87504.0,87495.0,0.01142922]
[1766771283286,0.01148,87504.0,87497.0,0.01142896]
[1766771283488,0.01148,87504.0,87501.0,0.06856999]
[1766771283692,0.01148,87505.0,87504.0,0.01142804]
[1766771283894,0.01148,87505.0,87499.0,0.0114287]
[1766771284187,0.00055,87504.0,87499.0,0.0114287]
[1766771284393,0.01148,87505.0,87498.0,0.01142883]
[1766771284734,0.01148,87505.0,87499.0,0.0114287]
[1766771285143,0.01148,87505.0,87500.0,0.01142857]
[1766771285805,0.00055,87500.0,87495.0,0.01142922]
[1766771286023,0.01148,87505.0,87496.0,0.01142909]
[1766771286518,0.01148,87505.0,87493.0,0.01142948]
[1766771286725,0.07453,87504.0,87496.0,0.01142909]
[1766771286986,0.01148,87505.0,87498.0,0.01142883]
[1766771287809,0.01148,87505.0,87497.0,0.01142896]
[1766771288068,0.01148,87505.0,87498.0,0.01142883]
[1766771288290,0.01148,87505.0,87500.0,0.01142857]
[1766771288492,0.01148,87505.0,87503.0,0.05714089]
[1766771288695,0.010931,87505.0,87502.0,0.01142831]
[1766771288900,0.01148,87513.0,87503.0,0.05714089]
[1766771289126,0.08601,87513.0,87484.0,0.01143066]
[1766771289324,0.00055,87503.0,87493.0,0.01142948]
[1766771289441,0.00055,87503.0,87490.0,0.01142987]
[1766771289442,0.01148,87502.0,87492.0,0.01142961]
[1766771289648,0.01148,87502.0,87490.0,0.01142987]
[1766771289844,0.01148,87502.0,87492.0,0.01142961]
[1766771290429,0.01148,87502.0,87495.0,0.01142922]
[1766771290557,0.01148,87502.0,87489.0,0.11887752]
[1766771290558,0.01148,87502.0,87494.0,0.06857577]
[1766771290743,0.01148,87506.0,87495.0,0.01142922]
[1766771290945,0.01148,87506.0,87492.0,0.06857769]
[1766771291146,0.01148,87506.0,87493.0,0.01142948]
[1766771291398,0.01148,87506.0,87494.0,0.01142935]
[1766771291841,0.01148,87506.0,87497.0,0.01142896]
[1766771291966,0.01148,87506.0,87501.0,0.05714188]
[1766771292188,0.01148,87506.0,87500.0,0.01142857]
[1766771293714,0.01148,87506.0,87498.0,0.0685728]
[1766771294156,0.01148,87506.0,87500.0,0.01142857]
[1766771294325,0.01148,87506.0,87499.0,0.0114287]
[1766771294535,0.01148,87506.0,87500.0,0.01142857]
[1766771294727,0.01148,87506.0,87499.0,0.0114287]
[1766771295351,0.000549,87499.0,87494.0,0.01142935]
[1766771295527,0.01148,87506.0,87494.0,0.01142935]
[1766771295934,0.01148,87506.0,87495.0,0.01142922]
[1766771296119,0.01148,87506.0,87494.0,0.01142935]
[1766771297990,0.01148,87506.0,87495.0,0.01142922]
[1766771298614,0.01148,87506.0,87496.0,0.01142909]
[1766771298987,0.01148,87506.0,87495.0,0.01142922]
[1766771300023,0.01148,87506.0,87493.0,0.01142948]
[1766771300216,0.01148,87506.0,87494.0,0.01142935]
[1766771300446,0.01148,87506.0,87493.0,0.01142948]
[1766771300648,0.01148,87506.0,87495.0,0.01142922]
[1766771301497,0.01148,87506.0,87494.0,0.06857552]
[1766771301498,0.01148,87506.0,87494.0,0.01142935]
[1766771302413,0.01148,87506.0,87492.0,0.01142961]
[1766771302571,0.01148,87506.0,87491.0,0.20604841]
[1766771302572,0.00055,87492.0,87491.0,0.1489]
[1766771303027,0.01148,87497.0,87491.0,0.1489]
[1766771303028,0.07183,87495.0,87491.0,0.1489]
[1766771303365,0.07183,87495.0,87473.0,0.26927861]
[1766771303366,0.07183,87495.0,87473.0,0.01143209]
[1766771303561,0.4490993,87483.0,87473.0,0.01143209]
[1766771303760,0.01148,87482.0,87473.0,0.01143209]
[1766771304062,0.44914008,87483.0,87475.0,0.05715918]
[1766771304220,0.01148,87482.0,87474.0,0.06859137]
[1766771304405,0.01148,87482.0,87474.0,0.01143196]
[1766771304610,0.01148,87482.0,87464.0,0.2911644]
[1766771304611,0.00055,87474.0,87466.0,0.01143301]
[1766771304829,0.00055,87474.0,87464.0,0.01143327]
[1766771304830,0.01148,87473.0,87464.0,0.01143327]
[1766771305240,0.01148,87473.0,87462.0,0.01143353]
[1766771305442,0.4490993,87472.0,87463.0,0.0114334]
[1766771305829,0.4490993,87472.0,87464.0,0.01143327]
[1766771306167,0.4490993,87472.0,87463.0,0.0114334]
[1766771306540,0.50234023,87472.0,87462.0,0.01143353]
[1766771306906,0.50234023,87472.0,87461.0,0.01143366]
[1766771307186,0.50234023,87472.0,87460.0,0.01143379]
[1766771307384,0.50234023,87472.0,87461.0,0.01143366]
[1766771307538,0.50234023,87472.0,87462.0,0.01143353]
[1766771307741,0.05856502,87471.0,87463.0,0.0114334]
[1766771308295,0.05856502,87471.0,87460.0,0.06860259]
[1766771308440,0.05856502,87471.0,87461.0,0.01143366]
[1766771309037,0.05856502,87471.0,87462.0,0.01143353]
[1766771309241,0.4490993,87472.0,87463.0,0.0114334]
[1766771309692,0.4490993,87472.0,87461.0,0.01143366]
[1766771309901,0.4490993,87472.0,87458.0,0.01143405]
[1766771310305,0.4490993,87468.0,87459.0,0.01143392]
[1766771310519,0.4490993,87468.0,87460.0,0.01143379]
[1766771310950,0.03969921,87467.0,87460.0,0.01143379]
[1766771311306,0.01148,87473.0,87465.0,0.01143314]
[1766771311510,0.01148,87473.0,87463.0,0.0114334]
[1766771311710,0.01148,87473.0,87464.0,0.01143327]
[1766771312026,0.01148,87473.0,87463.0,0.0114334]
[1766771312171,0.05324093,87472.0,87458.0,0.05716987]
[1766771312372,0.00055,87463.0,87460.0,0.01143379]
[1766771312595,0.00055,87463.0,87456.0,0.01157759]
[1766771312596,0.01148,87462.0,87456.0,0.01157759]
[1766771312799,0.01148,87462.0,87456.0,0.00014327]
[1766771313015,0.01148,87462.0,87457.0,0.01143419]
[1766771313278,0.01148,87462.0,87456.0,0.00014327]
[1766771313499,0.01148,87462.0,87457.0,0.01143419]
[1766771313706,0.01148,87462.0,87456.0,0.01157759]
[1766771314146,0.01148,87462.0,87458.0,0.01143405]
[1766771314353,0.010931,87462.0,87458.0,0.01143405]
[1766771314550,0.010931,87462.0,87457.0,0.01143419]
[1766771314775,0.010931,87462.0,87456.0,0.00014327]
[1766771315279,0.010931,87462.0,87458.0,0.01143405]
[1766771315410,0.010931,87462.0,87459.0,0.06860311]
[1766771315763,0.4490993,87470.0,87461.0,0.01143366]
[1766771315967,0.01148,87469.0,87460.0,0.01143379]
[1766771316740,0.01148,87469.0,87461.0,0.01143366]
[1766771316948,0.01148,87469.0,87460.0,0.01143379]
[1766771317229,0.01148,87469.0,87459.0,0.01143392]
[1766771317430,0.06211393,87468.0,87461.0,0.01143366]
[1766771317710,0.01148,87468.0,87459.0,0.01143392]
[1766771318021,0.01148,87468.0,87460.0,0.01143379]
[1766771318228,0.01148,87468.0,87459.0,0.01143392]
[1766771319376,0.01148,87468.0,87460.0,0.01143379]
[1766771319578,0.01148,87468.0,87461.0,0.01143366]
[1766771319783,0.4490993,87470.0,87461.0,0.01143366]
[1766771319784,0.01148,87467.0,87461.0,0.01143366]
[1766771320223,0.01148,87467.0,87460.0,0.01143379]
[1766771320726,0.01148,87467.0,87461.0,0.01143366]
[1766771321187,0.4490993,87470.0,87462.0,0.01143353]
[1766771321392,0.07183,87497.0,87486.0,0.0114304]
[1766771321551,0.4490993,87510.0,87483.0,0.01143079]
[1766771321552,0.5063393,87496.0,87483.0,0.01143079]
[1766771321750,0.4492993,87493.0,87486.0,0.0114304]
[1766771321963,0.0002,87493.0,87483.0,0.01143079]
[1766771322309,0.0002,87493.0,87489.0,0.01143]
[1766771322517,0.0002,87493.0,87487.0,0.01143026]
[1766771322946,0.0002,87493.0,87484.0,0.06858338]
[1766771323126,0.0002,87493.0,87486.0,0.0114304]
[1766771323753,0.0002,87493.0,87488.0,0.01143013]
[1766771323952,0.4490993,87500.0,87497.0,0.01142896]
[1766771324108,0.04084377,87537.0,87498.0,0.01142883]
[1766771324109,0.05724,87499.0,87498.0,0.01142883]
[1766771324299,0.4490993,87510.0,87498.0,0.01142883]
[1766771324497,0.13024,87509.0,87497.0,0.01142896]
[1766771325132,0.05724,87508.0,87497.0,0.01142896]
[1766771325307,0.05724,87508.0,87498.0,0.01142883]
[1766771325512,0.05724,87508.0,87497.0,0.01142896]
[1766771325750,0.05724,87508.0,87498.0,0.01142883]
[1766771326002,0.05724,87507.0,87499.0,0.0114287]
[1766771326201,0.05724,87507.0,87497.0,0.01142896]
[1766771326356,0.05724,87507.0,87498.0,0.01142883]
[1766771326762,0.05724,87507.0,87499.0,0.0114287]
[1766771327166,0.05724,87507.0,87497.0,0.01142896]
[1766771327341,0.05724,87507.0,87498.0,0.01142883]
[1766771328440,0.05724,87507.0,87499.0,0.0114287]
[1766771329089,0.05724,87507.0,87498.0,0.00685753]
[1766771329476,0.05724,87507.0,87496.0,0.01142909]
[1766771329679,0.05724,87507.0,87494.0,0.05714618]
[1766771329680,0.05724,87507.0,87495.0,0.01142922]
[1766771329882,0.05724,87507.0,87493.0,0.06857652]
[1766771330081,0.4490993,87510.0,87495.0,0.01142922]
[1766771330286,0.05724,87509.0,87495.0,0.01142922]
[1766771330523,0.05724,87509.0,87494.0,0.01142935]
[1766771330731,0.05724,87509.0,87477.0,0.1489]
[1766771330732,0.000549,87494.0,87485.0,0.01143053]
[1766771331044,0.13024,87509.0,87485.0,0.00035725]
[1766771331045,0.01148,87493.0,87485.0,0.00035725]
[1766771332145,0.01148,87493.0,87485.0,2.5e-07]
[1766771333400,0.01148,87493.0,87485.0,0.01143078]
[1766771333883,0.01148,87493.0,87485.0,2.5e-07]
[1766771334307,0.01148,87493.0,87485.0,0.01143078]
[1766771334507,0.01148,87493.0,87485.0,2.5e-07]
[1766771335242,0.01148,87493.0,87482.0,0.01143092]
[1766771335763,0.01148,87493.0,87483.0,0.01143079]
[1766771336358,0.01148,87493.0,87482.0,0.01143092]
[1766771336783,0.08448,87493.0,87477.0,0.01143157]
[1766771336985,0.08448,87493.0,87480.0,0.01143118]
[1766771337567,0.008448,87492.0,87480.0,0.01143118]
[1766771338339,0.008448,87492.0,87481.0,0.01143105]
[1766771338759,0.008448,87492.0,87480.0,0.01143118]
[1766771339103,0.008448,87492.0,87481.0,0.01143105]
[1766771339512,0.008448,87492.0,87478.0,0.06858813]
[1766771339713,0.0092928,87491.0,87479.0,0.01143131]
[1766771339934,0.0092928,87491.0,87477.0,0.01153867]
[1766771339935,0.4490993,87490.0,87477.0,0.01153867]
[1766771340135,0.04576,87489.0,87477.0,0.0001071]
[1766771340336,8.49e-05,87477.0,87473.0,0.0002]
[1766771340539,0.01148,87476.0,87473.0,0.00024078]
[1766771340856,0.011123,87476.0,87473.0,0.00024078]
[1766771341069,0.011123,87476.0,87473.0,0.01167287]
[1766771341458,0.011123,87476.0,87473.0,0.00024078]
[1766771345901,0.011123,87476.0,87473.0,0.01167287]
[1766771346106,0.0092928,87491.0,87476.0,0.0114317]
[1766771346282,0.05724,87490.0,87480.0,0.4490993]
[1766771346638,0.05724,87489.0,87480.0,0.01143118]
[1766771347120,0.05724,87489.0,87479.0,0.01143131]
[1766771347319,0.05724,87489.0,87478.0,0.01143144]
[1766771347522,0.05724,87489.0,87479.0,0.01143131]
[1766771347723,0.05724,87489.0,87478.0,0.01143144]
[1766771348022,0.05724,87489.0,87479.0,0.01143131]
[1766771348225,0.05724,87489.0,87478.0,0.01143144]
[1766771348429,0.05724,87489.0,87479.0,0.01143131]
[1766771348591,0.05724,87489.0,87480.0,0.01143118]
[1766771348793,0.05724,87489.0,87479.0,0.01143131]
[1766771349131,0.05724,87488.0,87479.0,0.01143131]
[1766771349329,0.05724,87488.0,87478.0,0.01143144]
[1766771349689,0.05724,87488.0,87470.0,0.01143249]
[1766771349890,0.000441,87478.0,87464.0,0.01143327]
[1766771350081,0.01148,87477.0,87467.0,0.01143288]
[1766771350276,0.01148,87477.0,87466.0,0.06859774]
[1766771350475,0.01148,87477.0,87467.0,0.01143288]
[1766771350933,0.01148,87477.0,87464.0,0.07531601]
[1766771351131,0.01148,87477.0,87473.0,7.8e-07]
[1766771351913,0.08448,87477.0,87473.0,7.8e-07]
[1766771354985,0.084132,87477.0,87473.0,7.8e-07]
[1766771355191,0.0002,87487.0,87473.0,7.8e-07]
[1766771355346,0.05724,87486.0,87473.0,0.01143287]
[1766771355553,0.05724,87486.0,87473.0,7.8e-07]
[1766771356749,0.0002,87487.0,87476.0,0.05715818]
[1766771357134,0.0002,87487.0,87486.0,0.00055]
[1766771357267,0.0002,87487.0,87477.0,0.46053087]
[1766771357268,0.04576,87486.0,87481.0,0.01143105]
[1766771357469,0.04576,87486.0,87480.0,0.01143118]
[1766771357808,0.04576,87486.0,87472.0,0.01143222]
[1766771358038,0.000549,87480.0,87470.0,0.4490993]
[1766771358171,0.01148,87479.0,87470.0,0.4490993]
[1766771358372,0.01148,87478.0,87470.0,0.4490993]
[1766771358580,0.01148,87477.0,87470.0,0.4490993]
[1766771358824,0.01148,87476.0,87470.0,0.46053179]
[1766771359040,0.01148,87476.0,87469.0,0.01143262]
[1766771359178,0.01148,87475.0,87469.0,0.01143262]
[1766771359383,0.01093,87475.0,87467.0,0.01163288]
[1766771359827,0.01093,87475.0,87468.0,0.01143275]
[1766771360416,0.01093,87475.0,87467.0,0.01163288]
[1766771361430,0.01093,87475.0,87468.0,0.01143275]
[1766771361753,0.01093,87475.0,87467.0,0.01163288]
[1766771362132,0.01093,87475.0,87468.0,0.01143275]
[1766771362524,0.01093,87475.0,87467.0,0.01163288]
[1766771362525,0.01148,87474.0,87473.0,0.01143287]
[1766771363779,0.01148,87474.0,87473.0,7.8e-07]
[1766771364528,0.01148,87474.0,87467.0,0.0002]
[1766771365082,0.01148,87474.0,87467.0,0.01163288]
[1766771365299,0.01148,87474.0,87470.0,0.01143249]
[1766771365503,0.01148,87474.0,87471.0,0.01143236]
[1766771365713,0.01148,87474.0,87470.0,0.01143249]
[1766771366151,0.01148,87474.0,87468.0,0.01143275]
[1766771366406,0.01148,87474.0,87469.0,0.01143262]
[1766771366752,0.01148,87474.0,87468.0,0.01143275]
[1766771366920,0.01148,87474.0,87469.0,0.01143262]
[1766771367749,0.01148,87474.0,87468.0,0.01143275]
[1766771368278,0.01148,87474.0,87467.0,0.01163288]
[1766771368631,0.01148,87474.0,87467.0,0.0002]
[1766771369785,0.01148,87474.0,87467.0,0.01163288]
[1766771370782,0.01148,87474.0,87467.0,0.0002]
[1766771370991,0.01148,87474.0,87467.0,0.01163288]
[1766771371957,0.005724,87473.0,87467.0,0.01163288]
[1766771372419,0.005724,87473.0,87467.0,0.0002]
[1766771373025,0.005724,87473.0,87467.0,0.01163288]
[1766771373167,0.005724,87473.0,87468.0,0.01143275]
[1766771373590,0.005724,87473.0,87467.0,0.04216184]
[1766771373803,0.0062964,87472.0,87467.0,0.04216184]
[1766771374043,0.0062964,87472.0,87467.0,0.03072896]
[1766771374627,0.01148,87474.0,87467.0,0.03072896]
[1766771375008,0.01148,87474.0,87467.0,0.02962996]
[1766771375824,0.01148,87474.0,87462.0,0.01143353]
[1766771376236,0.01148,87474.0,87463.0,0.0114334]
[1766771376456,0.01148,87474.0,87461.0,0.01143366]
[1766771377215,0.05089398,87474.0,87458.0,0.10355605]
[1766771377425,0.05089398,87474.0,87456.0,0.09795235]
[1766771377426,0.12572398,87474.0,87456.0,0.09795235]
[1766771377660,0.12572398,87474.0,87457.0,0.01143419]
[1766771377839,0.12572398,87474.0,87458.0,0.01143405]
[1766771378058,0.12572398,87474.0,87457.0,0.01143419]
[1766771378224,0.12572398,87474.0,87458.0,0.01143405]
[1766771378225,0.06208586,87473.0,87458.0,0.01143405]
[1766771378823,0.06190732,87473.0,87458.0,0.01143405]
[1766771379055,0.06190732,87473.0,87456.0,0.07300747]
[1766771379248,0.07483,87472.0,87457.0,0.05717059]
[1766771379459,0.44937457,87470.0,87456.0,0.07300747]
[1766771379732,0.51307516,87470.0,87456.0,0.07300747]
[1766771379927,0.51307516,87470.0,87456.0,0.06157315]
[1766771380349,0.51307516,87470.0,87456.0,0.00014327]
[1766771380350,0.58790516,87470.0,87456.0,0.00014327]
[1766771380557,0.07483,87469.0,87456.0,0.00014327]
[1766771380771,0.04811159,87468.0,87456.0,0.00014327]
[1766771380998,0.06741682,87469.0,87468.0,0.000549]
[1766771381197,0.06149524,87500.0,87476.0,0.0114317]
[1766771381198,0.07483,87479.0,87476.0,0.0114317]
[1766771381409,0.07483,87479.0,87473.0,0.01143209]
[1766771381410,0.04576,87482.0,87480.0,0.01143118]
[1766771381678,0.01148,87481.0,87480.0,0.00697305]
[1766771381892,0.01148,87481.0,87479.0,0.0685873]
[1766771382107,0.07483,87495.0,87488.0,0.01143013]
[1766771382323,0.07483,87495.0,87485.0,0.01143053]
[1766771382324,0.01148,87494.0,87485.0,0.01143053]
[1766771382528,0.01148,87494.0,87482.0,0.01143092]
[1766771382763,0.01148,87494.0,87481.0,0.06858567]
[1766771382973,0.01148,87494.0,87483.0,0.01143079]
[1766771383180,0.01148,87493.0,87483.0,0.01143079]
[1766771383784,0.01148,87493.0,87484.0,0.01143066]
[1766771384315,0.01148,87493.0,87481.0,0.01143105]
[1766771384536,0.01148,87493.0,87482.0,0.01143092]
[1766771384750,0.01148,87493.0,87483.0,0.01143079]
[1766771385400,0.01148,87493.0,87482.0,0.01143092]
[1766771385736,0.01148,87493.0,87483.0,0.01143079]
[1766771385943,0.01148,87493.0,87481.0,0.01143105]
[1766771386761,0.01148,87493.0,87482.0,0.01143092]
[1766771387166,0.01148,87493.0,87482.0,0.06858552]
[1766771387779,0.01148,87493.0,87483.0,0.01143079]
[1766771388189,0.01148,87493.0,87485.0,0.01143053]
[1766771388894,0.01148,87493.0,87487.0,0.01143026]
[1766771389092,0.01148,87493.0,87486.0,0.0114304]
[1766771389508,0.01148,87493.0,87485.0,0.01143053]
[1766771389712,0.01148,87493.0,87483.0,0.01143079]
[1766771389893,0.01148,87493.0,87484.0,0.01143066]
[1766771390077,0.01148,87493.0,87486.0,0.0114304]
[1766771390279,0.01148,87493.0,87487.0,0.01143026]
[1766771391122,0.010931,87493.0,87486.0,0.0114304]
[1766771391325,0.010931,87493.0,87483.0,0.01143079]
[1766771391607,0.010931,87493.0,87482.0,0.01143092]
[1766771392171,0.010931,87493.0,87484.0,0.01143066]
[1766771392341,0.010931,87493.0,87486.0,0.0114304]
[1766771392953,0.010931,87493.0,87488.0,0.01143013]
[1766771393152,0.010931,87493.0,87487.0,0.05715095]
[1766771393153,0.010931,87493.0,87487.0,0.01143026]
[1766771393558,0.06752,87510.0,87485.0,0.22860926]
[1766771393816,0.05724,87509.0,87496.0,0.01142909]
[1766771394023,0.05724,87509.0,87498.0,0.01142883]
[1766771394178,0.05724,87509.0,87497.0,0.01142896]
[1766771394383,0.06762714,87510.0,87497.0,0.01142896]
[1766771394611,0.05724,87509.0,87497.0,0.01142896]
[1766771395007,0.05724,87509.0,87498.0,0.01142883]
[1766771395952,0.05724,87509.0,87496.0,0.01142909]
[1766771396169,0.05724,87509.0,87495.0,0.01142922]
[1766771396561,0.05724,87509.0,87494.0,0.01142935]
[1766771396774,0.05724,87509.0,87495.0,0.01142922]
[1766771397189,0.05724,87509.0,87494.0,0.01142935]
[1766771397313,0.05724,87509.0,87492.0,0.01142961]
[1766771397520,0.05724,87509.0,87496.0,0.01142909]
[1766771398147,0.05724,87509.0,87495.0,0.01142922]
[1766771398394,0.05724,87509.0,87494.0,0.01142935]
[1766771398595,0.05724,87509.0,87492.0,0.01142961]
[1766771398801,0.05724,87509.0,87494.0,0.01142935]
[1766771398957,0.05724,87509.0,87497.0,0.01142896]
[1766771399161,0.05724,87509.0,87496.0,0.01142909]
[1766771399364,0.05724,87509.0,87497.0,0.01142896]
[1766771399592,0.05724,87509.0,87496.0,0.01142909]
[1766771399964,0.05724,87509.0,87495.0,0.01142922]
[1766771400360,0.05724,87509.0,87496.0,0.01142909]
[1766771400553,0.05724,87509.0,87493.0,0.01142948]
[1766771400746,0.05724,87509.0,87492.0,0.01142961]
[1766771400946,0.05724,87509.0,87493.0,0.01142948]
[1766771401419,0.05724,87509.0,87492.0,0.01142961]
[1766771401420,0.12476,87509.0,87492.0,0.01142961]
[1766771401716,0.01248671,87508.0,87491.0,0.01142974]
[1766771401926,0.08000671,87508.0,87490.0,0.44937457]
[1766771402080,0.000549,87491.0,87482.0,0.01143092]
[1766771402450,0.01148,87490.0,87482.0,0.01143092]
[1766771402634,0.01148,87489.0,87481.0,0.0685861]
[1766771402840,0.01148,87489.0,87484.0,0.01143066]
[1766771403245,0.01148,87489.0,87483.0,0.01143079]
[1766771403591,0.01148,87489.0,87482.0,0.01143092]
[1766771403800,0.01148,87489.0,87483.0,0.01143079]
[1766771404202,0.01093,87489.0,87485.0,0.01143053]
[1766771404429,0.01093,87489.0,87484.0,0.01143066]
[1766771404631,0.01093,87489.0,87485.0,0.01143053]
[1766771405080,0.01093,87489.0,87482.0,0.01143092]
[1766771405283,0.01093,87489.0,87481.0,0.01143105]
[1766771405588,0.01093,87489.0,87480.0,0.06434255]
[1766771405730,0.018775,87489.0,87480.0,0.06434255]
[1766771405933,0.018775,87489.0,87469.0,0.01143262]
[1766771405934,0.000549,87480.0,87469.0,0.01143262]
[1766771406129,0.01148,87479.0,87473.0,0.06174487]
[1766771407074,0.01148,87479.0,87475.0,0.01143183]
[1766771407275,0.0002,87477.0,87465.0,0.01143314]
[1766771407483,0.01148,87479.0,87470.0,0.01143249]
[1766771407687,0.01148,87479.0,87472.0,0.05716079]
[1766771408010,0.01148,87479.0,87471.0,0.06859398]
[1766771408011,0.01148,87479.0,87475.0,0.01143183]
[1766771408179,0.01148,87479.0,87473.0,0.01143209]
[1766771408505,0.01148,87479.0,87472.0,0.01143222]
[1766771408728,0.01148,87479.0,87474.0,0.01143196]
[1766771409250,0.01148,87479.0,87476.0,0.0114317]
[1766771409597,0.01148,87479.0,87474.0,0.06859134]
[1766771409598,0.01148,87479.0,87475.0,0.01143183]
[1766771410021,0.01148,87479.0,87472.0,0.01143222]
[1766771410222,0.01148,87479.0,87474.0,0.01143196]
[1766771410907,0.01148,87479.0,87475.0,0.01143183]
[1766771411446,0.01148,87479.0,87474.0,0.01143196]
[1766771412009,0.01148,87479.0,87473.0,0.06859215]
[1766771412212,0.01148,87479.0,87474.0,0.01143196]
[1766771412428,0.01148,87479.0,87473.0,0.01143209]
[1766771412640,0.01148,87479.0,87474.0,0.01143196]
[1766771412935,0.01148,87479.0,87473.0,0.01143209]
[1766771413198,0.01148,87479.0,87470.0,0.05716203]
[1766771413398,0.01148,87479.0,87471.0,0.01143236]
[1766771414085,0.000549,87471.0,87469.0,0.01143262]
[1766771414241,0.000549,87471.0,87468.0,0.01143275]
[1766771414579,0.01148,87472.0,87469.0,0.01143262]
[1766771415377,0.01148,87472.0,87470.0,0.057162]
[1766771415609,0.01148,87472.0,87469.0,0.0685952]
[1766771416180,0.01148,87472.0,87470.0,0.05716196]
[1766771416379,0.01148,87472.0,87469.0,0.0685952]
[1766771416813,0.01148,87472.0,87469.0,0.01143262]
[1766771417567,0.01148,87472.0,87469.0,0.06859532]
[1766771418226,0.01148,87472.0,87469.0,0.01143262]
[1766771419129,0.12047,87486.0,87478.0,0.01143144]
[1766771419130,0.07471,87486.0,87478.0,0.01143144]
[1766771419371,0.07471,87486.0,87468.0,0.01143275]
[1766771419373,0.07471,87524.0,87485.0,0.11887752]
[1766771419563,0.01148,87515.0,87512.0,0.011427]
[1766771419721,0.01148,87518.0,87515.0,0.01142661]
[1766771420127,0.010931,87518.0,87515.0,0.06855922]
[1766771420332,0.010931,87518.0,87515.0,0.01142661]
[1766771420518,0.01148,87518.0,87513.0,0.01142687]
[1766771420723,0.01148,87518.0,87515.0,0.01142661]
[1766771420965,0.04576,87527.0,87509.0,0.01142739]
[1766771420966,0.01148,87519.0,87509.0,0.01142739]
[1766771421364,0.01148,87519.0,87512.0,0.011427]
[1766771421577,0.01148,87519.0,87510.0,0.01142726]
[1766771422191,0.01148,87519.0,87511.0,0.01142713]
[1766771422323,0.01148,87519.0,87510.0,0.01142726]
[1766771422524,0.01148,87519.0,87511.0,0.01142713]
[1766771422768,0.01148,87519.0,87510.0,0.01142726]
[1766771422769,0.01148,87519.0,87509.0,0.06236605]
[1766771422948,0.01148,87519.0,87510.0,0.44885479]
[1766771423534,0.01148,87519.0,87510.0,0.46028205]
[1766771423751,0.01148,87519.0,87510.0,0.44885479]
[1766771423945,0.01148,87519.0,87511.0,0.01142713]
[1766771424168,0.44885479,87530.0,87511.0,0.01142713]
[1766771424169,0.01148,87520.0,87512.0,0.011427]
[1766771424436,0.010931,87520.0,87517.0,0.01142635]
[1766771424875,0.01148,87522.0,87518.0,0.01142622]
[1766771425081,0.0002,87540.0,87534.0,0.01142413]
[1766771425291,0.01168,87546.0,87543.0,0.01142295]
[1766771425465,0.000549,87543.0,87538.0,0.0571175]
[1766771425666,0.000549,87543.0,87527.0,0.22849994]
[1766771425667,0.01168,87546.0,87532.0,0.01142439]
[1766771425868,0.01168,87546.0,87529.0,0.01142478]
[1766771426281,0.01168,87546.0,87530.0,0.01142465]
[1766771426482,0.01168,87546.0,87531.0,0.01142452]
[1766771426802,0.01168,87546.0,87528.0,0.01142491]
[1766771427014,0.01168,87546.0,87529.0,0.01142478]
[1766771427223,0.01203734,87546.0,87529.0,0.01142478]
[1766771427385,0.01203734,87546.0,87530.0,0.01142465]
[1766771427586,0.01203734,87546.0,87534.0,0.01142413]
[1766771427787,0.01203734,87546.0,87533.0,0.01142426]
[1766771428085,0.01203734,87546.0,87532.0,0.01142439]
[1766771428423,0.01203734,87546.0,87531.0,0.01142452]
[1766771428801,0.01203734,87546.0,87530.0,0.01142465]
[1766771429008,0.01203734,87546.0,87532.0,0.01142439]
[1766771429171,0.01203734,87546.0,87531.0,0.01142452]
[1766771429377,0.01203734,87546.0,87530.0,0.01142465]
[1766771430573,0.01203734,87546.0,87528.0,0.06353009]
[1766771430692,0.00867473,87545.0,87528.0,0.06353009]
[1766771430893,0.00100118,87539.0,87525.0,0.0114253]
[1766771431093,0.00867473,87545.0,87526.0,0.01142517]
[1766771431494,0.00867473,87545.0,87529.0,0.01142478]
[1766771431495,0.07471,87545.0,87529.0,0.01142478]